lending/lending_fUSD_20251022
["ID","MTS","AMOUNT","RATE_DAILY","PERIOD"]
[392100438,1761161448347,-500.0,0.00043887,120]
[392100439,1761161448356,-507.00221583,0.00043887,120]
[392100440,1761161448366,-500.0,0.00043887,120]
[392100441,1761161448375,-764.41,0.00043887,120]
[392100442,1761161448384,-571.58,0.00043887,30]
[392100443,1761161448393,-804.79,0.00043887,120]
[392100444,1761161448402,-500.0,0.00043887,120]
[392100445,1761161448411,-500.0,0.00043887,120]
[392100446,1761161448420,-527.97,0.00043887,120]
[392100447,1761161448430,-500.0,0.00043887,120]
[392100448,1761161448439,-500.0,0.00043887,120]
[392100449,1761161448448,-791.58,0.00043887,120]
[392100450,1761161448544,-252.91423811,0.00043887,120]
[392100451,1761161448554,-500.0,0.00043887,120]
[392100452,1761161448563,-500.0,0.00043887,120]
[392100453,1761161448573,-503.3478187,0.00043887,120]
[392100454,1761161448582,-780.17,0.00043887,120]
[392100455,1761161448591,-990.94,0.00043887,120]
[392100456,1761161448601,-1044.35,0.00043887,120]
[392100457,1761161448613,-500.0,0.00043887,120]
[392100458,1761161448623,-500.0,0.00043887,120]
[392100459,1761161448632,-500.0,0.00043887,60]
[392100460,1761161448641,-500.0,0.00043887,120]
[392100461,1761161448650,-289.3327723,0.00043887,120]
[392100462,1761161448659,-500.0,0.00043887,120]
[392100463,1761161448668,-500.0,0.00043887,120]
[392100464,1761161448677,-500.0,0.00043887,120]
[392100465,1761161448687,-500.0,0.00043887,120]
[392100466,1761161448698,-290.28686391,0.00043887,120]
[392100467,1761161448707,-500.0,0.00043887,120]
[392100468,1761161448717,-510.76082515,0.00043887,120]
[392100469,1761161448726,-1596.27,0.00043887,120]
[392100470,1761161448736,-504.8191455,0.00043887,120]
[392100471,1761161448745,-500.0,0.00043887,120]
[392100472,1761161448755,-500.0,0.00043887,120]
[392100473,1761161448765,-500.0,0.00043887,60]
[392100474,1761161448774,-500.0,0.00043887,120]
[392100475,1761161448784,-500.0,0.00043887,120]
[392100476,1761161448793,-500.0,0.00043887,120]
[392100477,1761161448802,-500.0,0.00043887,120]
[392100478,1761161448812,-500.0,0.00043887,120]
[392100479,1761161448822,-500.0,0.00043887,120]
[392100480,1761161448831,-500.0,0.00043887,120]
[392100481,1761161448840,-500.0,0.00043887,120]
[392100482,1761161448850,-500.0,0.00043887,120]
[392100483,1761161448860,-500.0,0.00043887,120]
[392100484,1761161448870,-208.59356266,0.00043887,120]
[392100485,1761161448880,-500.0,0.00043887,120]
[392100486,1761161448889,-500.0,0.00043887,120]
[392100487,1761161448899,-500.0,0.00043887,120]
[392100488,1761161448908,-500.0,0.00043887,120]
[392100489,1761161448918,-278.3484676,0.00043887,120]
[392100490,1761161448927,-500.0,0.00043887,120]
[392100491,1761161448937,-500.0,0.00043887,120]
[392100492,1761161448946,-500.0,0.00043887,2]
[392100493,1761161448956,-500.0,0.00043887,120]
[392100494,1761161448965,-500.0,0.00043887,120]
[392100495,1761161448975,-500.0,0.00043887,120]
[392100496,1761161448984,-837.99,0.00043887,120]
[392100497,1761161448994,-500.0,0.00043887,120]
[392100498,1761161449004,-500.0,0.00043887,120]
[392100499,1761161449013,-500.0,0.00043887,120]
[392100500,1761161449023,-500.0,0.00043887,120]
[392100501,1761161449032,-858.34,0.00043887,2]
[392100502,1761161449042,-500.0,0.00043887,120]
[392100503,1761161449052,-500.0,0.00043887,120]
[392100504,1761161449061,-500.0,0.00043887,120]
[392100505,1761161449070,-572.84186523,0.00043887,120]
[392100506,1761161449080,-500.0,0.00043887,120]
[392100507,1761161449089,-1101.44,0.00043887,120]
[392100508,1761161449099,-500.0,0.00043887,120]
[392100509,1761161449108,-500.0,0.00043887,120]
[392100510,1761161449117,-668.32,0.00043887,120]
[392100511,1761161449126,-500.0,0.00043887,120]
[392100512,1761161449135,-500.0,0.00043887,120]
[392100513,1761161449144,-1263.06,0.00043887,120]
[392100514,1761161449154,-500.0,0.00043887,120]
[392100515,1761161449163,-1623.35,0.00043887,120]
[392100516,1761161449172,-500.0,0.00043887,120]
[392100517,1761161449181,-301.17829229,0.00043887,2]
[392100518,1761161449191,-617.0,0.00043887,120]
[392100519,1761161449204,-500.0,0.00043887,120]
[392100520,1761161449225,-500.0,0.00043887,120]
[392100521,1761161449239,-500.0,0.00043887,16]
[392100522,1761161449249,-500.0,0.00043887,120]
[392100523,1761161449260,-151.0,0.00043887,120]
[392100524,1761161449270,-151.0,0.00043887,120]
[392100525,1761161449280,-152.77312,0.00043887,120]
[392100526,1761161449291,-151.0,0.00043887,120]
[392100527,1761161449303,-500.0,0.00043887,120]
[392100528,1761161449313,-151.0,0.00043887,120]
[392100529,1761161449323,-155.814294,0.00043887,120]
[392100530,1761161449334,-159.087305,0.00043887,120]
[392100531,1761161449344,-158.11579,0.00043887,120]
[392100532,1761161449355,-151.0,0.00043887,120]
[392100533,1761161449364,-500.0,0.00043887,120]
[392100534,1761161449375,-156.052363,0.00043887,120]
[392100535,1761161449384,-156.704252,0.00043887,120]
[392100536,1761161449395,-151.0,0.00043887,120]
[392100537,1761161449405,-158.913017,0.00043887,120]
[392100538,1761161449414,-500.0,0.00043887,120]
[392100539,1761161449424,-500.0,0.00043887,2]
[392100540,1761161449434,-151.0,0.00043887,120]
[392100541,1761161449444,-500.0,0.00043887,120]
[392100542,1761161449453,-500.0,0.00043887,120]
[392100543,1761161449466,-500.0,0.00043887,120]
[392100544,1761161449475,-500.0,0.00043887,120]
[392100545,1761161449485,-1404.73,0.00043887,120]
[392100546,1761161449494,-636.1,0.00043887,120]
[392100547,1761161449505,-271.04902919,0.00043887,120]
[392100548,1761161449515,-500.0,0.00043887,120]
[392100549,1761161449524,-825.9,0.00043887,120]
[392100550,1761161449534,-500.0,0.00043887,120]
[392100551,1761161449544,-857.87,0.00043887,120]
[392100552,1761161449554,-707.53,0.00043887,120]
[392100553,1761161449570,-500.0,0.00043887,120]
[392100554,1761161449582,-500.0,0.00043887,120]
[392100555,1761161449592,-33141.5314,0.00043888,2]
[392100556,1761161449602,-1205.25,0.00043888,120]
[392100557,1761161449612,-824.35,0.00043888,120]
[392100558,1761161449621,-500.0,0.00043888,120]
[392100559,1761161449630,-500.0,0.00043888,7]
[392100560,1761161449640,-623.15,0.00043888,120]
[392100561,1761161449649,-500.0,0.00043888,120]
[392100562,1761161449658,-500.0,0.00043888,120]
[392100563,1761161449667,-891.43,0.00043888,120]
[392100564,1761161449678,-500.0,0.00043888,120]
[392100565,1761161449687,-500.0,0.00043888,120]
[392100566,1761161449696,-500.0,0.00043888,120]
[392100567,1761161449706,-691.13,0.00043888,120]
[392100568,1761161449716,-500.0,0.00043888,120]
[392100569,1761161449726,-3246.52,0.00043888,120]
[392100570,1761161449736,-5477.48,0.00043888,120]
[392100571,1761161449745,-521.96,0.00043888,120]
[392100572,1761161449754,-500.0,0.00043888,120]
[392100573,1761161449764,-593.34,0.00043888,120]
[392100574,1761161449773,-665.52,0.00043888,120]
[392100575,1761161449784,-500.0,0.00043888,120]
[392100576,1761161449793,-1079.01,0.00043888,120]
[392100577,1761161449802,-692.82,0.00043888,120]
[392100578,1761161449811,-1016.54,0.00043888,120]
[392100579,1761161449821,-651.4,0.00043888,120]
[392100580,1761161449831,-500.0,0.00043888,120]
[392100581,1761161449840,-558.32,0.00043888,120]
[392100582,1761161449850,-609.65,0.00043888,120]
[392100583,1761161449859,-549.72199341,0.00043889,120]
[392100584,1761161449869,-500.0,0.00043889,120]
[392100585,1761161449880,-469.50458549,0.00043889,120]
[392100586,1761161449889,-500.0,0.00043889,120]
[392100587,1761161449899,-500.0,0.00043889,120]
[392100588,1761161449908,-1580.55,0.00043889,120]
[392100589,1761161449918,-837.83,0.00043889,120]
[392100590,1761161449928,-500.0,0.00043889,120]
[392100591,1761161449937,-500.0,0.00043889,120]
[392100592,1761161450034,-1087.92,0.00043889,120]
[392100593,1761161450044,-993.44,0.00043889,120]
[392100594,1761161450053,-361.73430906,0.00043889,120]
[392100595,1761161450063,-500.0,0.00043889,120]
[392100596,1761161450073,-500.0,0.00043889,120]
[392100597,1761161450082,-4265.19,0.00043889,30]
[392100598,1761161450092,-500.0,0.00043889,120]
[392100599,1761161450102,-538.57,0.00043889,120]
[392100600,1761161450111,-709.57,0.00043889,120]
[392100601,1761161450121,-4110.15,0.00043889,120]
[392100602,1761161450130,-500.0,0.00043889,120]
[392100603,1761161450139,-889.38,0.00043889,120]
[392100604,1761161450149,-777.67,0.00043889,120]
[392100605,1761161450159,-500.0,0.00043889,120]
[392100606,1761161450168,-500.0,0.00043889,120]
[392100607,1761161450177,-500.0,0.00043889,120]
[392100608,1761161450189,-887.37,0.00043889,120]
[392100609,1761161450198,-500.0,0.00043889,120]
[392100610,1761161450207,-500.0,0.00043889,120]
[392100611,1761161450221,-500.0,0.00043889,120]
[392100612,1761161450230,-537.84,0.00043889,120]
[392100613,1761161450239,-500.0,0.00043889,120]
[392100614,1761161450248,-500.0,0.00043889,120]
[392100615,1761161450257,-151.0,0.00043889,120]
[392100616,1761161450266,-500.0,0.00043889,120]
[392100617,1761161450275,-151.0,0.00043889,120]
[392100618,1761161450285,-187.304323,0.00043889,120]
[392100619,1761161450294,-187.304323,0.00043889,120]
[392100620,1761161450303,-187.304323,0.00043889,120]
[392100621,1761161450313,-500.0,0.00043889,120]
[392100622,1761161450322,-187.304323,0.00043889,120]
[392100623,1761161450332,-789.86,0.00043889,120]
[392100624,1761161450341,-500.0,0.00043889,120]
[392100625,1761161450351,-500.0,0.00043889,120]
[392100626,1761161450360,-500.0,0.00043889,120]
[392100627,1761161450370,-500.0,0.00043889,120]
[392100628,1761161450379,-500.0,0.00043889,120]
[392100629,1761161450389,-1074.58,0.00043889,120]
[392100630,1761161450399,-500.0,0.00043889,120]
[392100631,1761161450407,-1203.5,0.00043889,120]
[392100632,1761161450417,-500.0,0.00043889,120]
[392100633,1761161450426,-500.0,0.00043889,120]
[392100634,1761161450435,-2024.8,0.00043889,120]
[392100635,1761161450444,-500.0,0.00043889,120]
[392100636,1761161450463,-506.35430145,0.00043898,120]
[392100637,1761161450481,-500.0,0.00043898,120]
[392100638,1761161450491,-191.85785068,0.00043898,120]
[392100639,1761161450500,-500.0,0.00043898,120]
[392100640,1761161450509,-314.06250199,0.00043898,120]
[392100641,1761161450518,-500.0,0.00043898,120]
[392100642,1761161450529,-500.0,0.00043898,120]
[392100643,1761161450538,-482.78945726,0.00043898,120]
[392100644,1761161450548,-764.41,0.00043898,120]
[392100645,1761161450557,-571.58,0.00043898,30]
[392100646,1761161450566,-804.79,0.00043898,120]
[392100647,1761161450575,-500.0,0.00043898,120]
[392100648,1761161450584,-500.0,0.00043898,120]
[392100649,1761161450594,-527.97,0.00043898,120]
[392100650,1761161450604,-500.0,0.00043898,120]
[392100651,1761161450615,-500.0,0.00043898,120]
[392100652,1761161450625,-791.58,0.00043898,120]
[392100653,1761161450635,-500.0,0.00043898,120]
[392100654,1761161450645,-500.0,0.00043898,120]
[392100655,1761161450654,-780.17,0.00043898,120]
[392100656,1761161450663,-990.94,0.00043898,120]
[392100657,1761161450673,-1044.35,0.00043898,120]
[392100658,1761161450683,-500.0,0.00043898,120]
[392100659,1761161450693,-500.0,0.00043898,120]
[392100660,1761161450703,-199.2297361,0.00043898,60]
[392100661,1761161450712,-500.0,0.00043898,120]
[392100662,1761161450722,-311.88690528,0.00043898,120]
[392100663,1761161450732,-500.0,0.00043898,120]
[392100664,1761161450742,-500.0,0.00043898,120]
[392100665,1761161450751,-500.0,0.00043898,120]
[392100666,1761161450761,-513.36340645,0.00043898,120]
[392100667,1761161450770,-1596.27,0.00043898,120]
[392100668,1761161450779,-500.0,0.00043898,120]
[392100669,1761161450789,-500.0,0.00043898,120]
[392100670,1761161450799,-500.0,0.00043898,60]
[392100671,1761161450808,-508.71205034,0.00043898,120]
[392100672,1761161450817,-500.0,0.00043898,120]
[392100673,1761161450827,-500.0,0.00043898,120]
[392100674,1761161450836,-238.29273277,0.00043898,120]
[392100675,1761161450846,-500.0,0.00043898,120]
[392100676,1761161450855,-500.0,0.00043898,120]
[392100677,1761161450864,-500.0,0.00043898,120]
[392100678,1761161450874,-622.16358621,0.00043898,120]
[392100679,1761161450883,-500.0,0.00043898,120]
[392100680,1761161450893,-500.0,0.00043898,120]
[392100681,1761161450903,-500.0,0.00043898,120]
[392100682,1761161450912,-500.0,0.00043898,120]
[392100683,1761161450922,-500.0,0.00043898,120]
[392100684,1761161450931,-500.0,0.00043898,120]
[392100685,1761161450941,-500.0,0.00043898,120]
[392100686,1761161450951,-500.0,0.00043898,120]
[392100687,1761161450960,-500.0,0.00043898,2]
[392100688,1761161450970,-500.0,0.00043898,120]
[392100689,1761161450980,-500.0,0.00043898,120]
[392100690,1761161450989,-500.0,0.00043898,120]
[392100691,1761161450999,-837.99,0.00043898,120]
[392100692,1761161451008,-500.0,0.00043898,120]
[392100693,1761161451018,-500.0,0.00043898,120]
[392100694,1761161451026,-500.0,0.00043898,120]
[392100695,1761161451036,-500.0,0.00043898,120]
[392100696,1761161451045,-858.34,0.00043898,2]
[392100697,1761161451055,-513.76399675,0.00043898,120]
[392100698,1761161451064,-500.0,0.00043898,120]
[392100699,1761161451074,-509.04953417,0.00043898,120]
[392100700,1761161451083,-508.44661692,0.00043898,120]
[392100701,1761161451093,-1101.44,0.00043898,120]
[392100702,1761161451103,-500.0,0.00043898,120]
[392100703,1761161451112,-500.0,0.00043898,120]
[392100704,1761161451121,-668.32,0.00043898,120]
[392100705,1761161451131,-500.0,0.00043898,120]
[392100706,1761161451140,-500.0,0.00043898,120]
[392100707,1761161451150,-1263.06,0.00043898,120]
[392100708,1761161451160,-500.0,0.00043898,120]
[392100709,1761161451169,-1623.35,0.00043898,120]
[392100710,1761161451179,-500.0,0.00043898,120]
[392100711,1761161451188,-617.0,0.00043898,120]
[392100712,1761161451198,-500.0,0.00043898,120]
[392100713,1761161451207,-500.0,0.00043898,120]
[392100714,1761161451222,-500.0,0.00043898,16]
[392100715,1761161451232,-379.7922043,0.00043898,120]
[392100716,1761161451241,-500.0,0.00043898,120]
[392100717,1761161451251,-500.0,0.00043898,120]
[392100718,1761161451261,-500.0,0.00043898,120]
[392100719,1761161451271,-600.0,0.00043898,2]
[392100720,1761161451280,-500.0,0.00043898,120]
[392100721,1761161451292,-500.0,0.00043898,120]
[392100722,1761161451302,-500.0,0.00043898,120]
[392100723,1761161451393,-500.0,0.00043898,120]
[392100724,1761161451403,-1404.73,0.00043898,120]
[392100725,1761161451413,-636.1,0.00043898,120]
[392100726,1761161451423,-500.0,0.00043898,120]
[392100727,1761161451432,-825.9,0.00043898,120]
[392100728,1761161451442,-320.03933761,0.00043898,120]
[392100729,1761161451452,-857.87,0.00043898,120]
[392100730,1761161451462,-707.53,0.00043898,120]
[392100731,1761161451472,-500.0,0.00043898,120]
[392100732,1761161451481,-218.77646832,0.00043898,120]
[392100733,1761161451491,-5000.0,0.00043899,120]
[392100734,1761161451500,-180.53014433,0.000439,13]
[392100735,1761161451510,-41300.0,0.000439,16]
[392100736,1761161451520,-166.84469232,0.000439,120]
[392100737,1761161451529,-166.84469232,0.000439,120]
[392100738,1761161451538,-166.84469232,0.000439,120]
[392100739,1761161451547,-166.84469232,0.000439,120]
[392100740,1761161451556,-166.84469232,0.000439,120]
[392100741,1761161451565,-166.84469232,0.000439,120]
[392100742,1761161451574,-166.84,0.000439,120]
[392100743,1761161451583,-151.3961097,0.000439,120]
[392100744,1761161451592,-151.3961097,0.000439,120]
[392100745,1761161451601,-151.3961097,0.000439,120]
[392100746,1761161451610,-151.3961097,0.000439,120]
[392100747,1761161451620,-151.3961097,0.000439,120]
[392100748,1761161451629,-151.3961097,0.000439,120]
[392100749,1761161451639,-151.3961097,0.000439,120]
[392100750,1761161451649,-151.3961097,0.000439,120]
[392100751,1761161451659,-151.3961097,0.000439,120]
[392100752,1761161451668,-151.3961097,0.000439,120]
[392100753,1761161451678,-151.3961097,0.000439,120]
[392100754,1761161451687,-151.3961097,0.000439,120]
[392100755,1761161451697,-151.3961097,0.000439,120]
[392100756,1761161451706,-151.3961097,0.000439,120]
[392100757,1761161451717,-151.3961097,0.000439,120]
[392100758,1761161451727,-5067.00595964,0.000439,2]
[392100759,1761161451736,-421.49386331,0.000439,2]
[392100760,1761161451745,-151.0,0.000439,120]
[392100761,1761161451755,-203.49530626,0.000439,9]
[392100762,1761161451766,-151.0,0.000439,120]
[392100763,1761161451775,-151.0,0.000439,120]
[392100764,1761161451785,-151.0,0.000439,120]
[392100765,1761161451795,-188.878195,0.000439,30]
[392100766,1761161451804,-151.3961097,0.00043902,120]
[392100767,1761161451814,-1205.25,0.00043921,120]
[392100768,1761161451824,-824.35,0.00043921,120]
[392100769,1761161451833,-500.0,0.00043921,120]
[392100770,1761161451843,-500.0,0.00043921,7]
[392100771,1761161451852,-623.15,0.00043921,120]
[392100772,1761161451863,-500.0,0.00043921,120]
[392100773,1761161451872,-500.0,0.00043921,120]
[392100774,1761161451882,-891.43,0.00043921,120]
[392100775,1761161451891,-500.0,0.00043921,120]
[392100776,1761161451901,-500.0,0.00043921,120]
[392100777,1761161451911,-500.0,0.00043921,120]
[392100778,1761161451920,-691.13,0.00043921,120]
[392100779,1761161451929,-500.0,0.00043921,120]
[392100780,1761161451939,-3246.52,0.00043921,120]
[392100781,1761161451948,-5477.48,0.00043921,120]
[392100782,1761161451960,-521.96,0.00043921,120]
[392100783,1761161451982,-500.0,0.00043921,120]
[392100784,1761161451997,-593.34,0.00043921,120]
[392100785,1761161452016,-665.52,0.00043921,120]
[392100786,1761161452035,-500.0,0.00043921,120]
[392100787,1761161452050,-1079.01,0.00043921,120]
[392100788,1761161452069,-692.82,0.00043921,120]
[392100789,1761161452088,-1016.54,0.00043921,120]
[392100790,1761161452108,-651.4,0.00043921,120]
[392100791,1761161452127,-379.86163658,0.00043921,120]
[392100792,1761161452145,-558.32,0.00043921,120]
[392100793,1761161452164,-609.65,0.00043921,120]
[392100794,1761161452180,-500.0,0.00043931,120]
[392100795,1761161452194,-500.0,0.00043931,120]
[392100796,1761161452214,-500.0,0.00043931,120]
[392100797,1761161452228,-642.99826728,0.00043931,120]
[392100798,1761161452245,-500.0,0.00043931,120]
[392100799,1761161452259,-500.0,0.00043931,120]
[392100800,1761161452275,-500.0,0.00043931,120]
[392100801,1761161452291,-500.0,0.00043931,120]
[392100802,1761161452305,-500.0,0.00043931,120]
[392100803,1761161452319,-637.57047397,0.00043931,120]
[392100804,1761161452334,-500.0,0.00043931,120]
[392100805,1761161452348,-500.0,0.00043931,120]
[392100806,1761161452363,-1074.58,0.00043931,120]
[392100807,1761161452378,-500.0,0.00043931,120]
[392100808,1761161452393,-1203.5,0.00043931,120]
[392100809,1761161452408,-500.0,0.00043931,120]
[392100810,1761161452423,-2024.8,0.00043931,120]
[392100811,1761161452437,-7156.2942381,0.00043932,2]
[392100812,1761161452453,-18450.2411278,0.00043932,2]
[392100813,1761161452468,-1649.2459001,0.00043932,2]
[392100814,1761161452483,-15284.1167252,0.00043932,2]
[392100815,1761161452498,-260.361876,0.00043932,120]
[392100816,1761161452514,-162.984859,0.00043932,120]
[392100817,1761161452528,-165.234667,0.00043932,120]
[392100818,1761161452543,-151.0,0.00043932,120]
[392100819,1761161452558,-151.0,0.00043932,120]
[392100820,1761161452572,-154.107749,0.00043932,120]
[392100821,1761161452588,-165.000615,0.00043932,120]
[392100822,1761161452602,-183.434982,0.00043932,120]
[392100823,1761161452616,-153.352827,0.00043932,120]
[392100824,1761161452633,-157.453622,0.00043932,120]
[392100825,1761161452649,-168.171519,0.00043932,120]
[392100826,1761161452663,-151.0,0.00043962,120]
[392100827,1761161452676,-174.486188,0.00043962,120]
[392100828,1761161452691,-151.0,0.00043962,120]
[392100829,1761161452705,-151.0,0.00043962,120]
[392100830,1761161452720,-159.175571,0.00043962,120]
[392100831,1761161452734,-159.909834,0.00043962,120]
[392100832,1761161452747,-151.0,0.00043962,120]
[392100833,1761161452761,-153.903214,0.00043962,120]
[392100834,1761161452776,-177.996517,0.00043962,120]
[392100835,1761161452792,-151.0,0.00043962,120]
[392100836,1761161452805,-163.189812,0.00043962,120]
[392100837,1761161452814,-155.953113,0.00043962,120]
[392100838,1761161452824,-151.0,0.00043962,120]
[392100839,1761161452833,-468.93605062,0.00043962,120]
[392100840,1761161452843,-500.0,0.00043962,120]
[392100841,1761161452853,-4265.19,0.00043962,30]
[392100842,1761161452862,-500.0,0.00043962,120]
[392100843,1761161453043,-538.57,0.00043962,120]
[392100844,1761161453064,-709.57,0.00043962,120]
[392100845,1761161453075,-4110.15,0.00043962,120]
[392100846,1761161453086,-151.0,0.00043962,120]
[392100847,1761161453096,-889.38,0.00043962,120]
[392100848,1761161453105,-777.67,0.00043962,120]
[392100849,1761161453115,-151.0,0.00043962,120]
[392100850,1761161453124,-500.0,0.00043962,120]
[392100851,1761161453134,-500.0,0.00043962,120]
[392100852,1761161453143,-537.84,0.00043962,120]
[392100853,1761161453152,-500.0,0.00043962,120]
[392100854,1761161453161,-501.48668253,0.00043965,3]
[392100855,1761161453170,-500.0,0.00043972,120]
[392100856,1761161453180,-500.0,0.00043972,120]
[392100857,1761161453189,-500.0,0.00043972,120]
[392100858,1761161453199,-500.0,0.00043972,120]
[392100859,1761161453208,-764.41,0.00043972,120]
[392100860,1761161453221,-571.58,0.00043972,30]
[392100861,1761161453230,-804.79,0.00043972,120]
[392100862,1761161453239,-500.0,0.00043972,120]
[392100863,1761161453248,-500.0,0.00043972,120]
[392100864,1761161453258,-527.97,0.00043972,120]
[392100865,1761161453268,-500.0,0.00043972,120]
[392100866,1761161453277,-560.36123494,0.00043972,120]
[392100867,1761161453286,-791.58,0.00043972,120]
[392100868,1761161453297,-165.89030765,0.00043972,120]
[392100869,1761161453306,-500.0,0.00043972,120]
[392100870,1761161453315,-780.17,0.00043972,120]
[392100871,1761161453325,-990.94,0.00043972,120]
[392100872,1761161453334,-1044.35,0.00043972,120]
[392100873,1761161453344,-500.0,0.00043972,120]
[392100874,1761161453354,-500.0,0.00043972,120]
[392100875,1761161453363,-361.20896034,0.00043972,120]
[392100876,1761161453374,-151.0,0.00043972,120]
[392100877,1761161453383,-500.0,0.00043972,120]
[392100878,1761161453391,-500.0,0.00043972,120]
[392100879,1761161453400,-1596.27,0.00043972,120]
[392100880,1761161453409,-500.0,0.00043972,120]
[392100881,1761161453418,-363.66397468,0.00043972,60]
[392100882,1761161453427,-151.0,0.00043972,120]
[392100883,1761161453436,-500.0,0.00043972,120]
[392100884,1761161453446,-510.99562143,0.00043972,120]
[392100885,1761161453455,-500.0,0.00043972,120]
[392100886,1761161453465,-500.0,0.00043972,120]
[392100887,1761161453475,-500.0,0.00043972,120]
[392100888,1761161453485,-1205.25,0.00043972,120]
[392100889,1761161453494,-500.0,0.00043972,120]
[392100890,1761161453504,-553.94154633,0.00043972,120]
[392100891,1761161453513,-509.501983,0.00043972,120]
[392100892,1761161453523,-505.92090546,0.00043972,120]
[392100893,1761161453533,-399.36610071,0.00043972,120]
[392100894,1761161453543,-500.0,0.00043972,2]
[392100895,1761161453552,-500.0,0.00043972,120]
[392100896,1761161453562,-500.0,0.00043972,120]
[392100897,1761161453572,-837.99,0.00043972,120]
[392100898,1761161453582,-824.35,0.00043972,120]
[392100899,1761161453591,-500.0,0.00043972,120]
[392100900,1761161453601,-500.0,0.00043972,120]
[392100901,1761161453611,-500.0,0.00043972,120]
[392100902,1761161453620,-514.80154704,0.00043972,120]
[392100903,1761161453630,-500.0,0.00043972,120]
[392100904,1761161453640,-858.34,0.00043972,2]
[392100905,1761161453650,-500.0,0.00043972,7]
[392100906,1761161453659,-500.0,0.00043972,120]
[392100907,1761161453669,-1101.44,0.00043972,120]
[392100908,1761161453679,-535.2744055,0.00043972,120]
[392100909,1761161453688,-623.15,0.00043972,120]
[392100910,1761161453698,-500.0,0.00043972,120]
[392100911,1761161453708,-668.32,0.00043972,120]
[392100912,1761161453718,-500.0,0.00043972,120]
[392100913,1761161453727,-500.0,0.00043972,120]
[392100914,1761161453737,-1263.06,0.00043972,120]
[392100915,1761161453747,-500.0,0.00043972,120]
[392100916,1761161453757,-500.0,0.00043972,120]
[392100917,1761161453767,-500.0,0.00043972,120]
[392100918,1761161453776,-1623.35,0.00043972,120]
[392100919,1761161453786,-891.43,0.00043972,120]
[392100920,1761161453796,-500.0,0.00043972,120]
[392100921,1761161453806,-617.0,0.00043972,120]
[392100922,1761161453815,-500.0,0.00043972,120]
[392100923,1761161453825,-500.0,0.00043972,120]
[392100924,1761161453835,-500.0,0.00043972,120]
[392100925,1761161453844,-509.30018009,0.00043972,16]
[392100926,1761161453853,-500.0,0.00043972,120]
[392100927,1761161453863,-500.0,0.00043972,120]
[392100928,1761161453874,-500.0,0.00043972,120]
[392100929,1761161453884,-500.0,0.00043972,120]
[392100930,1761161453895,-500.0,0.00043972,120]
[392100931,1761161453904,-500.0,0.00043972,120]
[392100932,1761161453914,-500.0,0.00043972,120]
[392100933,1761161453924,-691.13,0.00043972,120]
[392100934,1761161453934,-500.0,0.00043972,120]
[392100935,1761161453945,-500.0,0.00043972,120]
[392100936,1761161453955,-500.0,0.00043972,120]
[392100937,1761161453966,-500.0,0.00043972,120]